Cogmind - Beta 16.1 @@@ ROGUE MODE // 2026.04.23 @ 18:45:02 Player: beans Result: Destroyed by as-27664 with Assembled Heavy Rifle Performance ------------- Evolutions (0) 0 Regions Visited (4) 800 Robots Destroyed (25) 125 Value Destroyed (601) 601 Prototype IDs (24) 480 Alien Tech Used (0) 0 Bonus (300) 300 TOTAL SCORE: 2306 Bonus ------- Aligned with FarCom 300 Cogmind --------- Core Integrity 0/250 Matter 443/450 Energy 160/160 System Corruption 4% Temperature Cool (0) Movement Walking (190) Ox1 Location -9/Mines Parts ------- > --- POWER (1) -------- Light Nuclear Core > --- PROPULSION (2) --- Carbon-fiber Leg > --- UTILITY (2) ------ Large Matter Pod Sensor Drone Bay (20/20) > --- WEAPON (2) ------- Rocket Launcher > --- INVENTORY (5) ---- Flying Fortress v7 Guided Plasma Cannon Peak State ------------ > --- POWER ------------ Light Nuclear Core > --- PROPULSION ------- Carbon-fiber Leg > --- UTILITY ---------- Large Matter Pod Sensor Drone Bay > --- WEAPON ----------- Guided Plasma Cannon Rocket Launcher > --- INVENTORY -------- Flying Fortress v7 [Rating: 28] Favorites ----------- Power Light Nuclear Core Power Core Light Nuclear Core Propulsion Aluminum Leg Leg Aluminum Leg Utility Large Matter Pod Device Sensor Drone Bay Storage Large Matter Pod Processor Targeting Computer Weapon Light Assault Rifle Energy Cannon Guided Plasma Cannon Ballistic Gun Light Assault Rifle Launcher Rocket Launcher Build | -11 -10 -10 -10 -9 ------- Run | Yrd Mat Min Exi Min Slots Evolved . | . . . . . Power . | . . . . . Propulsion . | . . . . . Utility . | . . . . . Weapon . | . . . . . Parts Attached 14 | 4 3 2 2 3 Power 1 | . 1 . . . Engine . | . . . . . Core 1 | . 1 . . . Reactor . | . . . . . Propulsion 4 | 2 1 . . 1 Treads . | . . . . . Leg 4 | 2 1 . . 1 Wheel . | . . . . . Hover . | . . . . . Flight . | . . . . . Utility 4 | . 1 . 2 1 Device 1 | . . . . 1 Storage 2 | . . . 2 . Processor 1 | . 1 . . . Hackware . | . . . . . Protection . | . . . . . Artifact . | . . . . . Weapon 5 | 2 . 2 . 1 Energy Gun . | . . . . . Energy Cannon 1 | . . . . 1 Ballistic Gun 3 | 2 . 1 . . Ballistic Cannon . | . . . . . Launcher 1 | . . 1 . . Special Weapon . | . . . . . Impact Weapon . | . . . . . Slashing Weapon . | . . . . . Piercing Weapon . | . . . . . Special Melee Weapon . | . . . . . Unidentified Prototypes 1 | . . . . 1 Parts Lost 7 | . 3 2 . 2 Power . | . . . . . Propulsion 3 | . 1 1 . 1 Utility 1 | . 1 . . . Weapon 3 | . 1 1 . 1 Highest Loss Streak 3 | . 3 1 . 1 To Critical Strikes . | . . . . . Average Backups 1 | . . 2 2 1 Power . | . . 1 . . Propulsion . | . . . . 1 Utility . | . . . . . Weapon 1 | . . 1 1 . Tool/Special . | . . . . . Unused Backups 4 | . . . 3 1 Power 1 | . . . 1 . Propulsion 1 | . . . . 1 Utility . | . . . . . Weapon 2 | . . . 2 . Tool/Special . | . . . . . Average Slot Usage (%) 64 | . 67 55 60 80 Core 10 | . . 14 14 14 Leg 17 | . 27 16 14 12 Storage 4 | . . . 3 22 Processor 3 | . 12 . . . Ballistic Gun 16 | . 27 14 14 9 Launcher 9 | . . 10 14 14 Peak Build Rating 28 | 4 6 8 13 28 Average Rating 8 | 2 4 6 8 16 On Entrance 6 | . 4 6 7 13 Avg Prop Armor Cover (%) . | . . . . . Naked Turns . | . . . . . Heaviest Build 36 | 3 6 10 16 36 Greatest Support 20 | 20 20 20 10 15 Greatest Overweight (x) 11 | . . . 1 11 Average Overweight (x) . | . . . . 1 Largest Inventory Capacity 5 | 5 5 5 5 5 Average Capacity 5 | 5 5 5 5 5 Most Carried 5 | 4 3 4 5 5 Average Carried 2 | . . 2 3 4 Final Capacity 5 | 5 5 5 5 5 Final Carried 5 | . 1 3 5 5 Class Distribution -------------------- 100% | Mutant Dominant Class ---------------- Mutant | -10/Materials Mutant | -10/Mines Mutant | -10/Exiles Mutant | -9/Mines Resources | -11 -10 -10 -10 -9 ----------- Run | Yrd Mat Min Exi Min Matter Collected 770 | 126 306 93 184 61 Remotely . | . . . . . Salvage Created 580 | . 482 80 . 18 Parts 43 | . 18 18 . 7 Haulers Intercepted 1 | . 1 . . . Recyclers Shooed . | . . . . . Parts Field Recycled . | . . . . . Retrieved Matter . | . . . . . Parts Self-Destructed . | . . . . . Prevented . | . . . . . Parts Restored . | . . . . . Kills | -11 -10 -10 -10 -9 ------- Run | Yrd Mat Min Exi Min Combat Hostiles Destroyed 21 | . 8 11 . 2 Guns 10 | . 8 2 . . Cannons 2 | . . . . 2 AOE 9 | . . 9 . . Classes Destroyed 7 | . 4 1 . 2 Worker 1 | . 1 . . . Tunneler 1 | . . . . 1 Hauler 1 | . 1 . . . Recycler 1 | . 1 . . . Swarmer 9 | . . 9 . . Grunt 10 | . 8 2 . . Demolisher 2 | . . . . 2 Best Kill Streak 5 | . 5 3 . 2 Combat Bots Only 5 | . 5 3 . 2 Max Kills in Single Turn 3 | . 1 3 . 1 Gunslinging . | . . . . . Exploded 3 | . . 3 . . Melee . | . . . . . Uniques/NPCs Destroyed . | . . . . . Combat | -11 -10 -10 -10 -9 -------- Run | Yrd Mat Min Exi Min Hostile Shots Fired 85 | . 61 22 . 2 Missed 28 | . 18 9 . 1 Hits 57 | . 43 13 . 1 Projectile 57 | . 43 13 . 1 AOE 3 | . . . . 3 Damage Taken 1117 | . 532 237 . 348 Core 256 | . 151 93 . 12 Absorbed by Shields . | . . . . . Core Remaining (%) 100 | 100 . . . . Volleys Fired 75 | . 48 20 . 7 Largest 2 | . 2 2 . 1 Hottest 120 | . 40 53 . 120 Shots Fired 128 | . 91 30 . 7 Gun 108 | . 91 17 . . Cannon 4 | . . . . 4 Launcher 16 | . . 13 . 3 Special . | . . . . . Kinetic 108 | . 91 17 . . Thermal 4 | . . . . 4 Explosive 16 | . . 13 . 3 Electromagnetic . | . . . . . Robot Hit Streak 7 | . 7 5 . . Robot Miss Streak 4 | . 4 2 . 1 Penetration Max . | . . . . . Secondary Targets 4 | . 4 . . . Max Gunslinging Chain 1 | . 1 . . . Shots Hit Robots 60 | . 53 7 . . Core Hits 40 | . 24 13 . 3 Critical Kills . | . . . . . Critical Parts Destroyed 2 | . 2 . . . Critical Strikes 2 | . 2 . . . Destroy 2 | . 2 . . . Melee Attacks . | . . . . . Impact . | . . . . . Slashing . | . . . . . Piercing . | . . . . . Sneak Attacks . | . . . . . Combat Hostiles . | . . . . . Follow-up Attacks . | . . . . . Damage Inflicted 1326 | . 523 644 . 159 Guns 565 | . 523 42 . . Cannons 104 | . . . . 104 Explosions 657 | . . 602 . 55 Melee . | . . . . . Ramming . | . . . . . Kinetic 565 | . 523 42 . . Thermal 104 | . . . . 104 Explosive 657 | . . 602 . 55 Electromagnetic . | . . . . . Impact . | . . . . . Slashing . | . . . . . Piercing . | . . . . . Highest Corruption 4 | . . . . 4 Average Corruption 4 | . . . . 4 Corruption Purged . | . . . . . Corruption Blocked . | . . . . . Effects 1 | . . . . 1 Heat Flow Errors 1 | . . . . 1 Overload Shots . | . . . . . Overflow Damage . | . . . . . Projectiles . | . . . . . Explosions . | . . . . . Melee . | . . . . . Knockbacks . | . . . . . Impact . | . . . . . Kinetic . | . . . . . Secondary . | . . . . . Self-Inflicted Damage 124 | . . 124 . . Shots 5 | . . 5 . . Rammed . | . . . . . Targets Rammed . | . . . . . Kicked . | . . . . . Crushed . | . . . . . Highest Temperature 335 | . 7 32 . 335 Average Temperature 62 | . 2 11 . 151 Received Heat Transfer 321 | . 297 24 . . Siege Activations . | . . . . . Martial Activations . | . . . . . Shielding Activations . | . . . . . Robots Disrupted . | . . . . . Combat Hostiles . | . . . . . Robots Corrupted . | . . . . . Combat Hostiles . | . . . . . Parts Fried . | . . . . . Impact Corruptions . | . . . . . Robots Melted . | . . . . . Combat Hostiles . | . . . . . Parts Melted . | . . . . . Heat Transferred 240 | . . . . 240 Parts Sabotaged . | . . . . . Parts Stolen . | . . . . . Parts Stripped . | . . . . . Power Chain Reactions . | . . . . . Alert | -11 -10 -10 -10 -9 ------- Run | Yrd Mat Min Exi Min Maximum Alert Level . | . . . . . Low Security (%) 100 | 100 100 100 . 100 Level 1 . | . . . . . Level 2 . | . . . . . Level 3 . | . . . . . Level 4 . | . . . . . Level 5 . | . . . . . High Security . | . . . . . Max Security . | . . . . . Peak Influence 196 | . 100 196 . 40 Initial 33 | . . 33 . . Average 53 | . 26 106 . 5 Influence Increases 685 | . 242 375 . 68 Destroy 0b10 Robot/C 420 | . 160 220 . 40 Destroy 0b10 Robot/NC 20 | . 15 . . 5 Destroy Leader 102 | . 52 40 . 10 Disable Machine 15 | . . 15 . . Destroy Structure 113 | . . 100 . 13 Lose Combat Pursuer 15 | . 15 . . . Influence Decreases 648 | . 155 288 174 31 Entered New Map 228 | . . 54 174 . Time Decay 360 | . 125 214 . 21 Lost Part 60 | . 30 20 . 10 Squads Dispatched 3 | . 3 . . . Investigation 3 | . 3 . . . Extermination . | . . . . . Reinforcement . | . . . . . Assault . | . . . . . Garrison . | . . . . . Intercept . | . . . . . Searches Triggered . | . . . . . Construction Impeded . | . . . . . Haulers Reinforced . | . . . . . Active Scanning Responses . | . . . . . Cargo Convoy Interrupts . | . . . . . Stealth | -11 -10 -10 -10 -9 --------- Run | Yrd Mat Min Exi Min Distress Signals 1 | . 1 . . . Communications Jammed . | . . . . . Distress Signals . | . . . . . Times Spotted 23 | . 13 9 . 1 Peak Tracking Total 3 | . 3 3 . 1 Tactical Retreats 1 | . 1 . . . Traps | -11 -10 -10 -10 -9 ------- Run | Yrd Mat Min Exi Min Traps Triggered 1 | . 1 . . . Indirectly . | . . . . . Trap Hack Attempts . | . . . . . Triggered . | . . . . . Disarmed . | . . . . . Reprogrammed . | . . . . . Reused . | . . . . . Traps Extracted . | . . . . . Installed . | . . . . . Triggered . | . . . . . Machines | -11 -10 -10 -10 -9 ---------- Run | Yrd Mat Min Exi Min Machines Disabled 1 | . . 1 . . Max in Single Turn 1 | . . 1 . . Machines Repaired . | . . . . . Machines Dismantled . | . . . . . Machines Sabotaged . | . . . . . Overloaded Fab Kills . | . . . . . Hacking | -11 -10 -10 -10 -9 --------- Run | Yrd Mat Min Exi Min Machines Accessed 4 | . 2 . 1 1 Terminals 2 | . 2 . . . Fabricators . | . . . . . Repair Stations . | . . . . . Recycling Units . | . . . . . Scanalyzers . | . . . . . Garrison Access . | . . . . . Total Hacks 6 | . 4 . 1 1 Successful 3 | . 1 . 1 1 Failed 3 | . 3 . . . Catastrophic 1 | . 1 . . . Database Lockouts . | . . . . . Manual 5 | . 4 . 1 . Terminals 4 | . 4 . . . Fabricators . | . . . . . Repair Stations . | . . . . . Recycling Units . | . . . . . Scanalyzers . | . . . . . Garrison Access . | . . . . . Terminal Hacks 2 | . . . 1 1 Open Door 1 | . . . . 1 Proto ID Catalog 1 | . . . 1 . Fabricator Hacks . | . . . . . Repair Station Hacks . | . . . . . Recycling Unit Hacks . | . . . . . Scanalyzer . | . . . . . Garrison Access Hacks . | . . . . . Unauthorized Hacks 1 | . 1 . . . Terminals 1 | . 1 . . . Sabotage 1 | . 1 . . . Fabricators . | . . . . . Repair Stations . | . . . . . Recycling Units . | . . . . . Scanalyzers . | . . . . . Garrison Access . | . . . . . Data Cores Recovered . | . . . . . Used . | . . . . . Hacking Detections 1 | . 1 . . . Full Trace Events 1 | . 1 . . . Feedback Events . | . . . . . Feedback Blocked . | . . . . . Robot Schematics Acquired . | . . . . . Robots Built . | . . . . . Authchips . | . . . . . Time . | . . . . . Total Robot Build Rating . | . . . . . Part Schematics Acquired . | . . . . . Parts Built . | . . . . . Authchips . | . . . . . Time . | . . . . . Total Part Build Rating . | . . . . . Part Studies Acquired . | . . . . . Parts Repaired . | . . . . . Time . | . . . . . Parts Recycled . | . . . . . Recycled Matter . | . . . . . Retrieved Matter . | . . . . . Retrieved Components . | . . . . . Parts Scanalyzed . | . . . . . Part Schematics Acquired . | . . . . . Parts Damaged . | . . . . . Bothacking | -11 -10 -10 -10 -9 ------------ Run | Yrd Mat Min Exi Min Used RIF Installer . | . . . . . Robots Hacked . | . . . . . Non-combat . | . . . . . Combat . | . . . . . Robot Hacks Applied . | . . . . . Relay Couplers Released . | . . . . . Fabnet Peak Effective % . | . . . . . Robots Rewired . | . . . . . Allies Hacked . | . . . . . Hacks Repelled . | . . . . . Allies | -11 -10 -10 -10 -9 -------- Run | Yrd Mat Min Exi Min Total Allies 2 | . . . . 2 Largest Group 2 | . . . . 2 Highest-Rated Group 41 | . . . . 41 Highest-Rated Ally 31 | . . . . 31 Total Orders . | . . . . . Ally Attacks 2 | . . . . 2 Total Damage 42 | . . . . 42 Kills . | . . . . . Allies Corrupted . | . . . . . Allies Melted . | . . . . . Intel | -11 -10 -10 -10 -9 ------- Run | Yrd Mat Min Exi Min Active Infowar (turns) . | . . . . . Robot Analysis Total . | . . . . . Derelict Logs Recovered . | . . . . . Drone Launches . | . . . . . Drone Recoveries . | . . . . . Exploration | -11 -10 -10 -10 -9 ------------- Run | Yrd Mat Min Exi Min Turns Passed 1599 | 38 418 451 467 225 Spaces Moved 1024 | 34 235 307 365 83 Core 19 | 15 . . . 4 Treads . | . . . . . Legs 1005 | 19 235 307 365 79 Wheels . | . . . . . Hover . | . . . . . Flight . | . . . . . Fastest Speed 50 | 50 120 120 120 190 Average Speed 129 | 89 120 120 126 218 Slowest Speed 600 | 120 120 120 190 600 Overloaded Moves . | . . . . . Propulsion Burnouts . | . . . . . Robots Hopped . | . . . . . Potential Cave-ins . | . . . . . Cave-ins Triggered 1 | . . . . 1 Exploration Rate (%) 37 | 3 40 65 61 16 Regions Visited 4 Branch Regions 3 Pre-discovered Areas . | . . . . . Known Exits Taken . | . . . . . Unknown Exits Taken 4 | 1 1 1 1 . Scrap Searched 1 | . . 1 . . Spaces Dug 36 | . . 30 . 6 Terrain Destroyed 164 | . . 133 . 31 Melee . | . . . . . Projectile 1 | . . . . 1 AOE 163 | . . 133 . 30 Terrain Rammed . | . . . . . Walls Destroyed . | . . . . . Machines Disabled . | . . . . . Actions | -11 -10 -10 -10 -9 --------- Run | Yrd Mat Min Exi Min Total 1186 | 41 289 362 373 121 Wait 52 | . . 29 . 23 Move 1020 | 33 234 306 364 83 Hop . | . . . . . Pick Up 16 | 4 4 4 3 1 Fast Attach 3 | . . . 2 1 Attach 12 | 4 3 2 . 3 Detach 2 | . . . . 2 Swap 1 | . . 1 . . Drop 5 | . . . 4 1 Fire 75 | . 48 20 . 7 Melee . | . . . . . Ram . | . . . . . Kick . | . . . . . Crush . | . . . . . Escape Stasis . | . . . . . Rewire . | . . . . . Trap . | . . . . . Miscellaneous . | . . . . . Route ------- -11/Scrapyard -10/Materials (discovered 2 exits: [*Mat] / [*Min]) -10/Mines (discovered 2 exits: [*Mat] / *Exi) -10/Exiles -9/Mines History --------- Turn | Location | Event 6 | -11/Scrapyard | Discovered new exit (range 16) 39 | -11/Scrapyard | Entered Materials 293 | -10/Materials | Discovered new exit (range 13) 313 | -10/Materials | Build established: Mutant 334 | -10/Materials | Discovered new exit (range 14) 422 | -10/Materials | Core integrity fell below 50% 457 | -10/Materials | Entered Mines 464 | -10/Mines | Received a Rocket Launcher from a helpful Derelict 466 | -10/Mines | Lost 3 parts (1n1u1w) 485 | -10/Mines | Met a Derelict bent on vengeance 582 | -10/Mines | Discovered new exit (range 10) 736 | -10/Mines | Core integrity fell below 20% 902 | -10/Mines | Deemed a non-threat by the Exiles lab entrance 902 | -10/Mines | Discovered new exit (range 5) 908 | -10/Mines | Entered Exiles 937 | -10/Exiles | Met 8R-AWN 959 | -10/Exiles | Met EX-HEX 991 | -10/Exiles | Met EX-BIN 1006 | -10/Exiles | Aligned with FarCom system 1007 | -10/Exiles | Given EX-Vault access code 1034 | -10/Exiles | Opened EX-Vault 1043 | -10/Exiles | Found Flying Fortress v7 1045 | -10/Exiles | Found Gui. Plasma Cannon 1070 | -10/Exiles | Warned to stay clear of 0b10 Research branches 1103 | -10/Exiles | Met EX-DEC 1346 | -10/Exiles | Discovered new exit (range 15) 1375 | -10/Exiles | Stole two prototypes: Flying Fortress v7, Gui. Plasma Cannon 1375 | -10/Exiles | Entered Mines 1473 | -9/Mines | Assembled infested the area 1478 | -9/Mines | Assisted by a Guerilla fighting off Assembled 1499 | -9/Mines | Found the Drone Emporium 1512 | -9/Mines | Found Prototype Device 1512 | -9/Mines | Identified Sensor Drone Bay 1523 | -9/Mines | Lost 3 allies 1565 | -9/Mines | Crushed by falling debris 1600 | -9/Mines | Destroyed by as-27664 with Assembled Heavy Rifle Last Messages --------------- PB-GNO(g) destroyed. Lgt. Assault Rifle destroyed. Machine disabled. SHOP.Sys disabled. Machine disabled. The unstable cave ceiling collapses. Crushed by falling debris. Aluminum Leg destroyed. System corrupted by crushing effect (+4). The unstable cave ceiling collapses. System corrupted: Heat flow error (+209). U-05 Engineer lays Concrete. U-05 Engineer builds a Wall. Acquired 15 matter. The unstable cave ceiling collapses. Acquired Carbon-fiber Leg. The unstable cave ceiling collapses. T-07 Excavator destroyed. Acquired 32 matter. Acquired 4 matter. Map ----- +----------------------------------------------------+ | ???????????????????????????????????????????????? | | ???????????????????????????????????????????????? | | ???????????????????????????????????????????????? | | ???????????????????????????????????????????????? | | ???????????????????????????????????????????????? | | ???????????????????????????????????????????????? | | ???????????????????????????????????????????????? | | ???????????????????????????????????????????????? | | ??????????????????s????????????????????????????? | | ???????????????????????????????????????????????? | | ???????????????????????????????????????????????? | | ???????????????????????????????????????????????? | | ???????????????????????????????????????????????? | | ???????????????????????????????????????????????? | | ???????????????????????????????????????????????? | | ???????????????????????????????????????????????? | | ???????????????????????????????????????????????? | | ???????????????????????????????????????????????? | | ???????????????????????????????????????????????? | | ???????????????????????????????????????????????? | | ????????????????????#######????????????????????? | | ???????????????????## """"##???????????????????? | | ???????????????????# #???????????????????? | | ???????????????????# ! ##??????????????????? | | ???????????????????## ! ###??????????????????? | | ???????????????????### @ ###??????????????????? | | ???????????????????# *%! #??????????????????? | | ???????????????????# =*% ##?????????????????? | | ???????????????????# !] ###???????????????? | | ???????????????????### #???????????????? | | ?????????????????????# #??????????????? | | ????????????????????? ! # # #????????????? | | ????????????????????? = ## #????????????? | | ????????????????????? a## ## #### #????? | | ????????????????????## =%= $ #????? | | ????????????????????? ###### #????? | | ????????????????????? #???????????? | | ?????????????????????###### # #???????????? | | ?##########???????????????? # ##???????????? | | ?# #??????????????###### ###????????????? | | ?# """ #?????????????## ## #??????????????? | | ?# """ #?????????????# ##?????????????? | | ?# """ #?????????????# ##????????????? | | ?# #?????????????# ##???????????? | | ?# #?############# #???????????? | | ?# #?# #????? | | ?# #?# ############# ######??????? | | ?# #?# #???????????## #???????????? | | ?### ######?# #????????????## ##???????????? | | ???# ######## #?????????????## ##????????????? | +----------------------------------------------------+ Best States ------------- Heat Dissipation 25 Energy Generation 14 Energy Capacity 160 Matter Stores 493 Matter Capacity 600 Sight Range 16 Terrain Scan Density 10 Evasion (%) 55 Targeting Accuracy 5 Item Schematics ----------------- None Robot Schematics ------------------ None Fabricated ------------ Nothing Repaired ---------- Nothing Studied --------- None Alien Tech Used ----------------- None Achievements -------------- None Challenges ------------ None Game ------ Seed ProjectionMissileJetlance Manual? 0 Play Time 00:09:04 Cumulative 275.2 hours Start 2026.04.23 @ 18:37:30 End 2026.04.23 @ 18:45:02 Sessions 1 Manual Loads 0 Difficulty Rogue Special Mode None Game No. 725 Rogue 723 Adventurer 2 Explorer 0 Win Type - Total 0 Types 0/0/0/0/0/0/0/0/0/0 Lore% 68 Gallery% 64 Achievement% 45 Wizard Run 0 Options --------- Layout 2 ASCII 0 Keyboard 0 Movement Mouse Keybinds 0 Fullscreen 1 Font 24/Smallcaps Map View 50x44 Zoom Use 0% Tactical HUD 0 Map Filters NONE Filters NONE Steam 1 RUN: c52cb8de-ce6c-425f-ab36-c1253d6461a7